fUST/lending_fUST_20240819
["ID","MTS","AMOUNT","RATE_DAILY","PERIOD"]
[335259666,1724051455074,-500.0,0.00016438,2]
[335259667,1724051455085,-746.05,0.00016438,2]
[335259668,1724051455095,-500.0,0.00016438,2]
[335259669,1724051455106,-500.0,0.00016438,2]
[335259670,1724051455116,-710.85,0.00016438,2]
[335259671,1724051455126,-500.0,0.00016438,2]
[335259672,1724051455137,-692.43,0.00016438,2]
[335259673,1724051455147,-500.0,0.00016438,2]
[335259674,1724051455155,-500.0,0.00016438,2]
[335259675,1724051455166,-500.0,0.00016438,2]
[335259676,1724051455176,-1130.61,0.00016438,2]
[335259677,1724051455185,-500.0,0.00016438,2]
[335259678,1724051455197,-500.0,0.00016438,2]
[335259679,1724051455206,-500.0,0.00016438,2]
[335259680,1724051455218,-180.24542059,0.00016438,2]
[335259681,1724051455228,-497.98880472,0.00016438,2]
[335259682,1724051455238,-507.9383321,0.00016438,2]
[335259683,1724051455247,-501.80816247,0.00016438,2]
[335259684,1724051455256,-506.85263888,0.00016438,2]
[335259685,1724051455266,-500.0,0.00016438,2]
[335259686,1724051455276,-502.32926269,0.00016438,2]
[335259687,1724051455286,-500.0,0.00016438,2]
[335259688,1724051455296,-500.0,0.00016438,2]
[335259689,1724051455307,-500.0,0.00016438,2]
[335259690,1724051455317,-500.0,0.00016438,2]
[335259691,1724051455329,-500.0,0.00016438,2]
[335259692,1724051455338,-633.38913776,0.00016438,2]
[335259693,1724051455348,-500.0,0.00016438,2]
[335259694,1724051455357,-500.0,0.00016438,2]
[335259695,1724051455367,-741.08,0.00016438,2]
[335259696,1724051455377,-500.0,0.00016438,2]
[335259697,1724051455388,-505.3731894,0.00016438,2]
[335259698,1724051455398,-500.89699519,0.00016438,2]
[335259699,1724051455409,-500.0,0.00016438,2]
[335259700,1724051455419,-500.0,0.00016438,2]
[335259701,1724051455428,-500.0,0.00016438,2]
[335259702,1724051455437,-503.95412494,0.00016438,2]
[335259703,1724051455446,-500.0,0.00016438,2]
[335259704,1724051455456,-500.0,0.00016438,2]
[335259705,1724051455466,-514.01504811,0.00016438,2]
[335259706,1724051455476,-500.0,0.00016438,2]
[335259707,1724051455485,-500.0,0.00016438,2]
[335259708,1724051455494,-500.0,0.00016438,2]
[335259709,1724051455503,-504.25787178,0.00016438,2]
[335259710,1724051455512,-171.9492132,0.00016438,2]
[335259711,1724051455521,-504.10284579,0.00016438,2]
[335259712,1724051455530,-504.07242754,0.00016438,2]
[335259713,1724051455539,-501.57496952,0.00016438,2]
[335259714,1724051455549,-503.84,0.00016438,2]
[335259715,1724051455560,-500.0,0.00016438,2]
[335259716,1724051455569,-500.0,0.00016438,2]
[335259717,1724051455578,-500.0,0.00016438,2]
[335259718,1724051455587,-508.52997352,0.00016438,2]
[335259719,1724051455597,-500.0,0.00016438,2]
[335259720,1724051455606,-500.0,0.00016438,2]
[335259721,1724051455616,-536.33,0.00016438,2]
[335259722,1724051455626,-785.63,0.00016438,2]
[335259723,1724051455636,-500.0,0.00016438,2]
[335259724,1724051455649,-504.11922932,0.00016438,2]
[335259725,1724051455660,-501.50911944,0.00016438,2]
[335259726,1724051455670,-1000.0,0.00016438,2]
[335259727,1724051455681,-502.11210097,0.00016438,2]
[335259728,1724051455691,-885.04,0.00016438,2]
[335259729,1724051455700,-635.84149051,0.00016438,2]
[335259730,1724051455710,-505.42376869,0.00016438,2]
[335259731,1724051455720,-633.56859619,0.00016438,2]
[335259732,1724051455731,-500.0,0.00016438,2]
[335259733,1724051455741,-500.0,0.00016438,2]
[335259734,1724051455754,-690.34,0.00016438,2]
[335259735,1724051455767,-1141.4,0.00016438,2]
[335259736,1724051455776,-510.84377627,0.00016438,2]
[335259737,1724051455785,-501.53325687,0.00016438,2]
[335259738,1724051455794,-500.86783738,0.00016438,2]
[335259739,1724051455804,-504.49097661,0.00016438,2]
[335259740,1724051455813,-509.03018034,0.00016438,2]
[335259741,1724051455822,-501.34344847,0.00016438,2]
[335259742,1724051455832,-989.34,0.00016438,2]
[335259743,1724051455842,-500.0,0.00016438,2]
[335259744,1724051455851,-1080.39,0.00016438,2]
[335259745,1724051455861,-501.46778864,0.00016438,2]
[335259746,1724051455870,-500.0,0.00016438,2]
[335259747,1724051455879,-1020.2,0.00016438,2]
[335259748,1724051455891,-500.0,0.00016438,2]
[335259749,1724051455903,-500.0,0.00016438,2]
[335259750,1724051455912,-511.62332892,0.00016438,2]
[335259751,1724051455922,-500.0,0.00016438,2]
[335259752,1724051455932,-500.0,0.00016438,2]
[335259753,1724051455942,-500.0,0.00016438,2]
[335259754,1724051455950,-500.0,0.00016438,2]
[335259755,1724051455960,-502.52752899,0.00016438,2]
[335259756,1724051455969,-832.28,0.00016438,2]
[335259757,1724051455979,-500.0,0.00016438,2]
[335259758,1724051455988,-500.0,0.00016438,2]
[335259759,1724051455998,-500.0,0.00016438,2]
[335259760,1724051456007,-500.0,0.00016438,2]
[335259761,1724051456017,-500.0,0.00016438,2]
[335259762,1724051456027,-500.0,0.00016438,2]
[335259763,1724051456036,-500.0,0.00016438,2]
[335259764,1724051456045,-500.0,0.00016438,2]
[335259765,1724051456055,-500.0,0.00016438,2]
[335259766,1724051456064,-500.0,0.00016438,2]
[335259767,1724051456073,-500.0,0.00016438,2]
[335259768,1724051456083,-500.0,0.00016438,2]
[335259769,1724051456092,-500.0,0.00016438,2]
[335259770,1724051456101,-500.0,0.00016438,2]
[335259771,1724051456110,-500.0,0.00016438,2]
[335259772,1724051456120,-479.08474328,0.00016438,2]
[335259773,1724051456129,-501.01892002,0.00016438,2]
[335259774,1724051456138,-483.55710376,0.00016438,2]
[335259775,1724051456150,-500.0,0.00016438,2]
[335259776,1724051456159,-503.03143655,0.00016438,2]
[335259777,1724051456168,-500.0,0.00016438,2]
[335259778,1724051456178,-2100.39,0.00016438,2]
[335259779,1724051456199,-500.0,0.00016438,2]
[335259780,1724051456209,-500.0,0.00016438,2]
[335259781,1724051456219,-500.0,0.00016438,2]
[335259782,1724051456229,-500.0,0.00016438,2]
[335259783,1724051456238,-500.0,0.00016438,2]
[335259784,1724051456248,-500.0,0.00016438,2]
[335259785,1724051456258,-652.26,0.00016438,2]
[335259786,1724051456267,-500.0,0.00016438,2]
[335259787,1724051456277,-500.0,0.00016438,2]
[335259788,1724051456287,-903.12,0.00016438,2]
[335259789,1724051456297,-500.0,0.00016438,2]
[335259790,1724051456307,-621.54,0.00016438,2]
[335259791,1724051456317,-502.74838933,0.00016438,2]
[335259792,1724051456331,-500.0,0.00016438,2]
[335259793,1724051456340,-500.0,0.00016438,2]
[335259794,1724051456349,-504.59690877,0.00016438,2]
[335259795,1724051456359,-500.39416975,0.00016438,2]
[335259796,1724051456370,-500.0,0.00016438,2]
[335259797,1724051456380,-500.0,0.00016438,2]
[335259798,1724051456522,-504.8869602,0.00016438,2]
[335259799,1724051456533,-500.0,0.00016438,2]
[335259800,1724051456543,-500.0,0.00016438,2]
[335259801,1724051456552,-500.0,0.00016438,2]
[335259802,1724051456565,-500.0,0.00016438,2]
[335259803,1724051456575,-500.0,0.00016438,2]
[335259804,1724051456585,-500.0,0.00016438,2]
[335259805,1724051456595,-500.0,0.00016438,2]
[335259806,1724051456605,-506.54517082,0.00016438,2]
[335259807,1724051456614,-500.0,0.00016438,2]
[335259808,1724051456624,-500.0,0.00016438,2]
[335259809,1724051456634,-500.0,0.00016438,2]
[335259810,1724051456644,-500.0,0.00016438,2]
[335259811,1724051456654,-500.0,0.00016438,2]
[335259812,1724051456663,-500.0,0.00016438,2]
[335259813,1724051456674,-500.0,0.00016438,2]
[335259814,1724051456685,-509.50656621,0.00016438,2]
[335259815,1724051456695,-500.0,0.00016438,2]
[335259816,1724051456708,-500.0,0.00016438,2]
[335259817,1724051456718,-436.60110986,0.00016438,2]
[335259818,1724051456727,-543.51454878,0.00016438,2]
[335259819,1724051456736,-500.0,0.00016438,2]
[335259820,1724051456746,-1019.71,0.00016438,2]
[335259821,1724051456757,-500.0,0.00016438,2]
[335259822,1724051456768,-500.0,0.00016438,2]
[335259823,1724051456781,-455.63144334,0.00016438,2]
[335259824,1724051456791,-334.59892924,0.00016438,2]
[335259825,1724051456802,-500.0,0.00016438,2]
[335259826,1724051456812,-500.0,0.00016438,2]
[335259827,1724051456822,-1075.19,0.00016438,2]
[335259828,1724051456834,-955.21,0.00016438,2]
[335259829,1724051456846,-500.0,0.00016438,2]
[335259830,1724051456857,-917.94,0.00016438,2]
[335259831,1724051456866,-500.0,0.00016438,2]
[335259832,1724051456876,-751.94,0.00016438,2]
[335259833,1724051456886,-521.07619031,0.00016438,2]
[335259834,1724051456897,-1282.92,0.00016438,2]
[335259835,1724051456907,-500.0,0.00016438,2]
[335259836,1724051456918,-500.0,0.00016438,2]
[335259837,1724051456928,-500.0,0.00016438,2]
[335259838,1724051456938,-500.0,0.00016438,2]
[335259839,1724051456948,-500.0,0.00016438,2]
[335259840,1724051456957,-501.11244673,0.00016438,2]
[335259841,1724051456967,-500.0,0.00016438,2]
[335259842,1724051456977,-500.0,0.00016438,2]
[335259843,1724051456993,-500.0,0.00016438,2]
[335259844,1724051457005,-500.0,0.00016438,2]
[335259845,1724051457016,-6065.1,0.00016438,2]
[335259846,1724051457026,-500.0,0.00016438,2]
[335259847,1724051457035,-6065.1,0.00016438,2]
[335259848,1724051457046,-310.8573923,0.00016438,2]
[335259849,1724051457057,-6065.1,0.00016438,2]
[335259850,1724051457067,-6065.1,0.00016438,2]
[335259851,1724051457077,-6065.1,0.00016438,2]
[335259852,1724051457086,-500.0,0.00016438,2]
[335259853,1724051457096,-6065.1,0.00016438,2]
[335259854,1724051457107,-6065.1,0.00016438,2]
[335259855,1724051457117,-6065.1,0.00016438,2]
[335259856,1724051457128,-500.0,0.00016438,2]
[335259857,1724051457138,-6065.1,0.00016438,2]
[335259858,1724051457151,-6065.1,0.00016438,2]
[335259859,1724051457160,-6065.1,0.00016438,2]
[335259860,1724051457170,-6065.1,0.00016438,2]
[335259861,1724051457180,-500.0,0.00016438,2]
[335259862,1724051457191,-6065.1,0.00016438,2]
[335259863,1724051457201,-6065.1,0.00016438,2]
[335259864,1724051457212,-500.0,0.00016438,2]
[335259865,1724051457221,-6065.1,0.00016438,2]
[335259866,1724051457231,-6065.1,0.00016438,2]
[335259867,1724051457241,-6065.1,0.00016438,2]
[335259868,1724051457250,-6065.1,0.00016438,2]
[335259869,1724051457260,-6065.1,0.00016438,2]
[335259870,1724051457269,-6065.1,0.00016438,2]
[335259871,1724051457279,-595.1,0.00016438,2]
[335259872,1724051457288,-6065.1,0.00016438,2]
[335259873,1724051457298,-250.31174079,0.00016438,2]
[335259874,1724051457308,-6065.1,0.00016438,2]
[335259875,1724051457317,-6065.1,0.00016438,2]
[335259876,1724051457330,-6065.30581277,0.00016438,2]
[335259877,1724051457340,-761.14,0.00016438,2]
[335259878,1724051457350,-500.0,0.00016438,2]
[335259879,1724051457361,-500.0,0.00016438,2]
[335259880,1724051457372,-500.0,0.00016438,2]
[335259881,1724051457381,-687.07,0.00016438,2]
[335259882,1724051457392,-500.0,0.00016438,2]
[335259883,1724051457404,-500.0,0.00016438,2]
[335259884,1724051457413,-506.74618252,0.00016438,2]
[335259885,1724051457422,-504.04448908,0.00016438,2]
[335259886,1724051457432,-500.0,0.00016438,2]
[335259887,1724051457441,-500.0,0.00016438,2]
[335259888,1724051457451,-500.0,0.00016438,2]
[335259889,1724051457463,-500.0,0.00016438,2]
[335259890,1724051457474,-500.0,0.00016438,2]
[335259891,1724051457486,-1243.65,0.00016438,2]
[335259892,1724051457496,-502.98493829,0.00016438,2]
[335259893,1724051457506,-500.0,0.00016438,2]
[335259894,1724051457516,-500.0,0.00016438,2]
[335259895,1724051457525,-500.0,0.00016438,2]
[335259896,1724051457535,-4408.37,0.00016438,2]
[335259897,1724051457546,-500.0,0.00016438,2]
[335259898,1724051457556,-500.0,0.00016438,2]
[335259899,1724051457565,-500.0,0.00016438,2]
[335259900,1724051457575,-1109.88,0.00016438,2]
[335259901,1724051457585,-602.01,0.00016438,2]
[335259902,1724051457595,-500.0,0.00016438,2]
[335259903,1724051457604,-500.0,0.00016438,2]
[335259904,1724051457614,-500.0,0.00016438,2]
[335259905,1724051457626,-1241.66,0.00016438,2]
[335259906,1724051457637,-500.0,0.00016438,2]
[335259907,1724051457647,-500.0,0.00016438,2]
[335259908,1724051457656,-632.3,0.00016438,2]
[335259909,1724051457666,-500.0,0.00016438,2]
[335259910,1724051457677,-1112.01,0.00016438,2]
[335259911,1724051457687,-500.0,0.00016438,2]
[335259912,1724051457701,-500.0,0.00016438,2]
[335259913,1724051457713,-766.82,0.00016438,2]
[335259914,1724051457724,-500.0,0.00016438,2]
[335259915,1724051457735,-500.0,0.00016438,2]
[335259916,1724051457745,-500.0,0.00016438,2]
[335259917,1724051457756,-500.0,0.00016438,2]
[335259918,1724051457766,-500.0,0.00016438,2]
[335259919,1724051457778,-251.38883447,0.00016438,2]
[335259920,1724051457789,-500.0,0.00016438,2]
[335259921,1724051457800,-500.0,0.00016438,2]
[335259922,1724051457810,-500.0,0.00016438,2]
[335259923,1724051457820,-501.2183351,0.00016438,2]
[335259924,1724051457830,-508.04633658,0.00016438,2]
[335259925,1724051457841,-1021.53,0.00016438,2]
[335259926,1724051457851,-500.0,0.00016438,2]
[335259927,1724051457861,-500.0,0.00016438,2]
[335259928,1724051457871,-500.0,0.00016438,2]
[335259929,1724051457881,-500.0,0.00016438,2]
[335259930,1724051457892,-594.42,0.00016438,2]
[335259931,1724051457902,-500.0,0.00016438,2]
[335259932,1724051457912,-502.66085418,0.00016438,2]
[335259933,1724051457921,-500.0,0.00016438,2]
[335259934,1724051457931,-500.0,0.00016438,2]
[335259935,1724051457942,-500.0,0.00016438,2]
[335259936,1724051457952,-500.0,0.00016438,2]
[335259937,1724051457962,-500.0,0.00016438,2]
[335259938,1724051457971,-1079.47,0.00016438,2]
[335259939,1724051457980,-500.0,0.00016438,2]
[335259940,1724051457990,-500.0,0.00016438,2]
[335259941,1724051457999,-503.53256552,0.00016438,2]
[335259942,1724051458009,-500.0,0.00016438,2]
[335259943,1724051458019,-500.0,0.00016438,2]
[335259944,1724051458028,-500.0,0.00016438,2]
[335259945,1724051458038,-500.0,0.00016438,2]
[335259946,1724051458048,-500.0,0.00016438,2]
[335259947,1724051458058,-500.0,0.00016438,2]
[335259948,1724051458161,-2134.15,0.00016438,2]
[335259949,1724051458171,-500.0,0.00016438,2]
[335259950,1724051458180,-500.0,0.00016438,2]
[335259951,1724051458190,-500.0,0.00016438,2]
[335259952,1724051458200,-635.35,0.00016438,2]
[335259953,1724051458209,-5892.23,0.00016438,2]
[335259954,1724051458219,-694.6,0.00016438,2]
[335259955,1724051458228,-733.8,0.00016438,2]
[335259956,1724051458238,-1945.27,0.00016438,2]
[335259957,1724051458247,-854.98,0.00016438,2]
[335259958,1724051458256,-580.51,0.00016438,2]
[335259959,1724051458266,-500.0,0.00016438,2]
[335259960,1724051458275,-503.64285014,0.00016438,2]
[335259961,1724051458284,-7409.76,0.00016438,2]
[335259962,1724051458293,-500.0,0.00016438,2]
[335259963,1724051458312,-500.0,0.00016438,2]
[335259964,1724051458324,-500.0,0.00016438,2]
[335259965,1724051458335,-500.0,0.00016438,2]
[335259966,1724051458345,-533.52,0.00016438,2]
[335259967,1724051458355,-500.0,0.00016438,2]
[335259968,1724051458366,-500.0,0.00016438,2]
[335259969,1724051458375,-500.0,0.00016438,2]
[335259970,1724051458385,-539.13,0.00016438,2]
[335259971,1724051458396,-500.0,0.00016438,2]
[335259972,1724051458407,-500.0,0.00016438,2]
[335259973,1724051458417,-752.15,0.00016438,2]
[335259974,1724051458427,-500.0,0.00016438,2]
[335259975,1724051458437,-500.0,0.00016438,2]
[335259976,1724051458446,-500.0,0.00016438,2]
[335259977,1724051458456,-4862.05,0.00016438,2]
[335259978,1724051458466,-500.0,0.00016438,2]
[335259979,1724051458476,-500.0,0.00016438,2]
[335259980,1724051458486,-500.0,0.00016438,2]
[335259981,1724051458496,-2836.27,0.00016438,2]
[335259982,1724051458506,-500.0,0.00016438,2]
[335259983,1724051458517,-500.0,0.00016438,2]
[335259984,1724051458527,-759.4,0.00016438,2]
[335259985,1724051458537,-500.0,0.00016438,2]
[335259986,1724051458551,-642.89,0.00016438,2]
[335259987,1724051458561,-472.70415435,0.00016438,2]
[335259988,1724051458572,-500.0,0.00016438,2]
[335259989,1724051458582,-500.0,0.00016438,2]
[335259990,1724051458591,-500.0,0.00016438,2]
[335259991,1724051458601,-399.82461786,0.00016438,2]
[335259992,1724051458610,-1315.44,0.00016438,2]
[335259993,1724051458620,-584.52,0.00016438,2]
[335259994,1724051458630,-507.95098629,0.00016438,2]
[335259995,1724051458641,-1397.63,0.00016438,2]
[335259996,1724051458659,-898.93,0.00016438,2]
[335259997,1724051458669,-500.0,0.00016438,2]
[335259998,1724051458678,-506.72333517,0.00016438,2]
[335259999,1724051458687,-500.0,0.00016438,2]
[335260000,1724051458697,-500.0,0.00016438,2]
[335260001,1724051458707,-500.0,0.00016438,2]
[335260002,1724051458718,-500.0,0.00016438,2]
[335260003,1724051458727,-500.0,0.00016438,2]
[335260004,1724051458738,-1951.38,0.00016438,2]
[335260005,1724051458747,-500.0,0.00016438,2]
[335260006,1724051458757,-523.00653093,0.00016438,2]
[335260007,1724051458767,-500.0,0.00016438,2]
[335260008,1724051458777,-1152.96,0.00016438,2]
[335260009,1724051458786,-500.0,0.00016438,2]
[335260010,1724051458796,-500.0,0.00016438,2]
[335260011,1724051458805,-754.5,0.00016438,2]
[335260012,1724051458821,-500.0,0.00016438,2]
[335260013,1724051458830,-780.5,0.00016438,2]
[335260014,1724051458840,-500.0,0.00016438,2]
[335260015,1724051458850,-500.0,0.00016438,2]
[335260016,1724051458860,-877.1,0.00016438,2]
[335260017,1724051458870,-964.88,0.00016438,2]
[335260018,1724051458880,-500.0,0.00016438,2]
[335260019,1724051458889,-500.0,0.00016438,2]
[335260020,1724051458900,-500.0,0.00016438,2]
[335260021,1724051458910,-500.0,0.00016438,2]
[335260022,1724051458920,-566.87,0.00016438,2]
[335260023,1724051458930,-1980.56,0.00016438,2]
[335260024,1724051458940,-836.81,0.00016438,2]
[335260025,1724051458953,-500.0,0.00016438,2]
[335260026,1724051458963,-781.49,0.00016438,2]
[335260027,1724051458973,-500.0,0.00016438,2]
[335260028,1724051458982,-500.3729485,0.00016438,2]
[335260029,1724051458991,-204.09254205,0.00016438,2]
[335260030,1724051459001,-500.0,0.00016438,2]
[335260031,1724051459011,-500.66125245,0.00016438,2]
[335260032,1724051459021,-500.0,0.00016438,2]
[335260033,1724051459030,-682.46,0.00016438,2]
[335260034,1724051459040,-502.94370905,0.00016438,2]
[335260035,1724051459049,-500.0,0.00016438,2]
[335260036,1724051459058,-500.0,0.00016438,2]
[335260037,1724051459068,-151.0,0.00016438,2]
[335260038,1724051459080,-151.0,0.00016438,2]
[335260039,1724051459091,-151.0,0.00016438,2]
[335260040,1724051459101,-151.0,0.00016438,2]
[335260041,1724051459110,-151.0,0.00016438,2]
[335260042,1724051459120,-151.0,0.00016438,2]
[335260043,1724051459129,-151.0,0.00016438,2]
[335260044,1724051459139,-151.0,0.00016438,2]
[335260045,1724051459150,-151.0,0.00016438,2]
[335260046,1724051459160,-151.0,0.00016438,2]
[335260047,1724051459170,-151.0,0.00016438,2]
[335260048,1724051459179,-151.0,0.00016438,2]
[335260049,1724051459189,-151.0,0.00016438,2]
[335260050,1724051459199,-151.0,0.00016438,2]
[335260051,1724051459210,-151.0,0.00016438,2]
[335260052,1724051459219,-151.0,0.00016438,2]
[335260053,1724051459228,-151.0,0.00016438,2]
[335260054,1724051459238,-179.874588,0.00016438,2]
[335260055,1724051459247,-3000.0,0.0001644,2]
[335260056,1724051459256,-1108.33604621,0.00016442,2]
[335260057,1724051459266,-1000.0,0.00016446,2]
[335260058,1724051459276,-1000.00466539,0.00016449,2]
[335260059,1724051459286,-3000.0,0.0001645,2]
[335260060,1724051459298,-181.224542,0.00016454,2]
[335260061,1724051459308,-158.075874,0.00016454,2]
[335260062,1724051459318,-181.224541,0.00016454,2]
[335260063,1724051459330,-160.242349,0.00016454,2]
[335260064,1724051459340,-178.52347,0.00016454,2]
[335260065,1724051459350,-193.735134,0.00016454,2]
[335260066,1724051459360,-178.523469,0.00016454,2]
[335260067,1724051459370,-182.570873,0.00016454,2]
[335260068,1724051459379,-291.63821,0.00016454,2]
[335260069,1724051459389,-321.929013,0.00016454,2]
[335260070,1724051459400,-160.964507,0.00016454,2]
[335260071,1724051459410,-189.1451,0.00016454,2]
[335260072,1724051459419,-224.772582,0.00016454,2]
[335260073,1724051459429,-162.697687,0.00016454,2]
[335260074,1724051459438,-167.901839,0.00016454,2]
[335260075,1724051459448,-3000.0,0.0001646,2]
[335260076,1724051459458,-3000.0,0.0001647,2]
[335260077,1724051459468,-200.0,0.00016473,2]
[335260078,1724051459477,-3000.0,0.0001648,2]
[335260079,1724051459487,-3000.0,0.0001649,2]
[335260080,1724051459497,-964.24543082,0.000165,2]
[335260081,1724051459507,-532.92895967,0.000165,2]
[335260082,1724051459517,-3000.0,0.000165,2]
[335260083,1724051459527,-300.0,0.000165,6]
[335260084,1724051459536,-202.88527595,0.000165,5]
[335260085,1724051459650,-1057.9334,0.000165,2]
[335260086,1724051459659,-1057.9334,0.000165,2]
[335260087,1724051459668,-3000.0,0.0001651,2]
[335260088,1724051459678,-3000.0,0.0001652,2]
[335260089,1724051459687,-3000.0,0.0001653,2]
[335260090,1724051459696,-3000.0,0.0001654,2]
[335260091,1724051459705,-600.0,0.00016545,2]
[335260092,1724051459716,-3000.0,0.0001655,2]
[335260093,1724051459725,-3000.0,0.0001656,2]
[335260094,1724051459735,-3000.0,0.0001657,2]
[335260095,1724051459744,-3000.0,0.0001658,2]
[335260096,1724051459753,-3000.0,0.0001659,2]
[335260097,1724051459762,-3000.0,0.000166,2]
[335260098,1724051459772,-160.0,0.00016606,4]
[335260099,1724051459782,-162.03816678,0.00016606,5]
[335260100,1724051459792,-160.0,0.00016606,5]
[335260101,1724051459802,-3000.0,0.0001661,2]
[335260102,1724051459811,-3000.0,0.0001662,2]
[335260103,1724051459821,-4912.925649,0.0001663,2]
[335260104,1724051459831,-999.1,0.00016712,2]
[335260105,1724051459843,-502.0615757,0.00016712,2]
[335260106,1724051459853,-500.0,0.00016712,2]
[335260107,1724051459864,-500.0,0.00016712,2]
[335260108,1724051459876,-500.0,0.00016712,2]
[335260109,1724051459888,-500.0,0.00016712,2]
[335260110,1724051459899,-500.0,0.00016712,2]
[335260111,1724051459908,-576.29973423,0.00016712,2]
[335260112,1724051459919,-500.0,0.00016712,2]
[335260113,1724051459928,-316.53177349,0.00016712,2]
[335260114,1724051459938,-511.02926428,0.00016712,2]
[335260115,1724051459947,-500.0,0.00016712,2]
[335260116,1724051459957,-561.8393499,0.00016712,2]
[335260117,1724051459967,-500.0,0.00016712,2]
[335260118,1724051459977,-500.0,0.00016712,2]
[335260119,1724051459987,-473.62945058,0.00016712,2]
[335260120,1724051459996,-517.21720186,0.00016712,2]
[335260121,1724051460006,-514.95955364,0.00016712,2]
[335260122,1724051460015,-513.34249659,0.00016712,2]
[335260123,1724051460025,-500.0,0.00016712,2]
[335260124,1724051460034,-500.0,0.00016712,2]
[335260125,1724051460044,-500.0,0.00016712,2]
[335260126,1724051460055,-512.89026995,0.00016712,2]
[335260127,1724051460065,-213.7435006,0.00016712,2]
[335260128,1724051460075,-507.26676668,0.00016712,2]
[335260129,1724051460085,-500.0,0.00016712,2]
[335260130,1724051460096,-699.49,0.00016712,2]
[335260131,1724051460105,-510.73848411,0.00016712,2]
[335260132,1724051460116,-500.0,0.00016712,2]
[335260133,1724051460125,-500.0,0.00016712,2]
[335260134,1724051460135,-517.40475918,0.00016712,2]
[335260135,1724051460145,-506.43486922,0.00016712,2]
[335260136,1724051460154,-512.40355357,0.00016712,2]
[335260137,1724051460164,-500.0,0.00016712,2]
[335260138,1724051460174,-500.0,0.00016712,2]
[335260139,1724051460183,-500.0,0.00016712,2]
[335260140,1724051460192,-513.94851765,0.00016712,2]
[335260141,1724051460203,-513.1468135,0.00016712,2]
[335260142,1724051460212,-532.52241963,0.00016712,2]
[335260143,1724051460223,-500.0,0.00016712,2]
[335260144,1724051460233,-500.0,0.00016712,2]
[335260145,1724051460242,-506.08313917,0.00016712,2]
[335260146,1724051460252,-500.0,0.00016712,2]
[335260147,1724051460271,-500.0,0.00016712,2]
[335260148,1724051460289,-500.0,0.00016712,2]
[335260149,1724051460307,-500.0,0.00016712,2]
[335260150,1724051460330,-500.0,0.00016712,2]
[335260151,1724051460351,-500.0,0.00016712,2]
[335260152,1724051460368,-550.68099872,0.00016712,2]
[335260153,1724051460387,-500.0,0.00016712,2]
[335260154,1724051460404,-500.0,0.00016712,2]
[335260155,1724051460423,-388.12304136,0.00016712,2]
[335260156,1724051460441,-500.0,0.00016712,2]
[335260157,1724051460462,-500.0,0.00016712,2]
[335260158,1724051460474,-500.0,0.00016712,2]
[335260159,1724051460489,-500.0,0.00016712,2]
[335260160,1724051460505,-638.12117558,0.00016712,2]
[335260161,1724051460522,-500.0,0.00016712,2]
[335260162,1724051460536,-500.0,0.00016712,2]
[335260163,1724051460550,-500.0,0.00016712,2]
[335260164,1724051460564,-500.0,0.00016712,2]
[335260165,1724051460579,-500.0,0.00016712,2]